[Event "*** Titled Tuesday 3|2 Blitz"]
[Site "Chess.com"]
[Date "2016.01.05"]
[Round "6"]
[White "Lupul_Cenusiu"]
[Black "aspired"]
[Result "1-0"]
[WhiteElo "2377"]
[BlackElo "2348"]
[TimeControl "180+2"]
[EndTime "12:18:03 PST"]
[Termination "Lupul_Cenusiu won by resignation"]

1. d4 {[%clk 0:03:01.9]} 1... e6 {[%clk 0:02:59.3]} 2. c4 {[%clk 0:03:02.7]}
2... f5 {[%clk 0:02:59.9]} 3. Nf3 {[%clk 0:03:03.9]} 3... Nf6 {[%clk 0:03:00.9]}
4. g3 {[%clk 0:03:05.4]} 4... d5 {[%clk 0:03:01.6]} 5. Qc2 {[%clk 0:03:05.9]}
5... c6 {[%clk 0:03:01.4]} 6. Bg2 {[%clk 0:03:06.8]} 6... Bd6 {[%clk 0:03:01.2]}
7. O-O {[%clk 0:03:07.5]} 7... O-O {[%clk 0:03:01.9]} 8. b3 {[%clk 0:03:08.6]}
8... Qe7 {[%clk 0:03:02]} 9. Ne5 {[%clk 0:03:06.4]} 9... Nbd7 {[%clk 0:02:58.2]}
10. Nd3 {[%clk 0:03:07.3]} 10... b6 {[%clk 0:02:54.2]} 11. a4 {[%clk 0:03:06.4]}
11... a5 {[%clk 0:02:46]} 12. Ba3 {[%clk 0:03:06.2]} 12... Ba6 {[%clk
0:02:46.3]} 13. Bxd6 {[%clk 0:03:02]} 13... Qxd6 {[%clk 0:02:48.2]} 14. e3
{[%clk 0:03:00.4]} 14... Rfc8 {[%clk 0:02:34.7]} 15. Rd1 {[%clk 0:02:57]} 15...
Rab8 {[%clk 0:02:28.4]} 16. Na3 {[%clk 0:02:55.7]} 16... c5 {[%clk 0:02:16.6]}
17. dxc5 {[%clk 0:02:55.5]} 17... Nxc5 {[%clk 0:02:15.5]} 18. Nf4 {[%clk
0:02:56.1]} 18... g5 {[%clk 0:01:54.3]} 19. Qb2 {[%clk 0:02:43.3]} 19... Qe7
{[%clk 0:01:48.8]} 20. Ne2 {[%clk 0:02:26.9]} 20... dxc4 {[%clk 0:01:48.1]} 21.
Nxc4 {[%clk 0:02:23.3]} 21... Nxb3 {[%clk 0:01:48.7]} 22. Qxb3 {[%clk
0:02:20.1]} 22... Bxc4 {[%clk 0:01:49.1]} 23. Qb2 {[%clk 0:02:21.2]} 23... Bxe2
{[%clk 0:01:44.6]} 24. Qxe2 {[%clk 0:02:21.6]} 24... Rd8 {[%clk 0:01:43.9]} 25.
Qc4 {[%clk 0:02:13.6]} 25... Kf7 {[%clk 0:01:40.5]} 26. Qb3 {[%clk 0:02:09.1]}
26... Rd7 {[%clk 0:01:27.1]} 27. Bc6 {[%clk 0:02:03.9]} 27... Rd6 {[%clk
0:01:25.3]} 28. Bf3 {[%clk 0:02:01.6]} 28... Rbd8 {[%clk 0:01:24.3]} 29. Rxd6
{[%clk 0:02:01.8]} 29... Rxd6 {[%clk 0:01:22.9]} 30. Rb1 {[%clk 0:02:02.1]}
30... g4 {[%clk 0:01:21.6]} 31. Bg2 {[%clk 0:02:02.9]} 31... Qc7 {[%clk
0:01:17.7]} 32. h4 {[%clk 0:02:01.6]} 32... Qc5 {[%clk 0:01:03.5]} 33. Rb2
{[%clk 0:01:51.2]} 33... Qc1+ {[%clk 0:00:55.4]} 34. Kh2 {[%clk 0:01:52.2]}
34... Kg6 {[%clk 0:00:55.3]} 35. Rb1 {[%clk 0:01:48.1]} 35... Qc5 {[%clk
0:00:51.4]} 36. Qb2 {[%clk 0:01:44.2]} 36... h5 {[%clk 0:00:44.2]} 37. Qb3
{[%clk 0:01:39.7]} 37... Nd7 {[%clk 0:00:41.5]} 38. Qb2 {[%clk 0:01:37.2]} 38...
Qe5 {[%clk 0:00:41.5]} 39. Qc2 {[%clk 0:01:35.4]} 39... Nc5 {[%clk 0:00:40.7]}
40. Rd1 {[%clk 0:01:34.5]} 40... Rxd1 {[%clk 0:00:29.8]} 41. Qxd1 {[%clk
0:01:35.2]} 41... Qc7 {[%clk 0:00:25.5]} 42. Qd4 {[%clk 0:01:32.9]} 42... e5
{[%clk 0:00:21.9]} 43. Qc4 {[%clk 0:01:33.5]} 43... Kf6 {[%clk 0:00:20.7]} 44.
Bf1 {[%clk 0:01:28.4]} 44... Ne6 {[%clk 0:00:20.3]} 45. Qb5 {[%clk 0:01:26.9]}
45... f4 {[%clk 0:00:20.5]} 46. exf4 {[%clk 0:01:25.3]} 46... exf4 {[%clk
0:00:22.4]} 47. Bd3 {[%clk 0:01:23.6]} 47... fxg3+ {[%clk 0:00:24.3]} 48. fxg3
{[%clk 0:01:24.7]} 48... Qc5 {[%clk 0:00:22.1]} 49. Qb2+ {[%clk 0:01:19.1]}
49... Qd4 {[%clk 0:00:21.2]} 50. Qe2 {[%clk 0:01:17.8]} 50... Nc5 {[%clk
0:00:21.2]} 51. Bb5 {[%clk 0:01:15.6]} 51... Ne4 {[%clk 0:00:21.5]} 52. Bd3
{[%clk 0:01:13.2]} 52... Qf2+ {[%clk 0:00:21.4]} 53. Qxf2+ {[%clk 0:01:14.3]}
53... Nxf2 {[%clk 0:00:23.3]} 54. Bb5 {[%clk 0:01:15.4]} 54... Nd1 {[%clk
0:00:22.2]} 55. Kg2 {[%clk 0:01:15.7]} 55... Nc3 {[%clk 0:00:22.8]} 56. Be8
{[%clk 0:01:16.7]} 56... Kf5 {[%clk 0:00:21.5]} 57. Kf2 {[%clk 0:01:17.3]} 57...
Ne4+ {[%clk 0:00:22.3]} 58. Kg2 {[%clk 0:01:18.7]} 58... Nf6 {[%clk 0:00:23.3]}
59. Bb5 {[%clk 0:01:18.5]} 59... Ke4 {[%clk 0:00:23.6]} 60. Kf2 {[%clk
0:01:19.8]} 60... Kd4 {[%clk 0:00:24.7]} 61. Bc6 {[%clk 0:01:19.4]} 61... Ne4+
{[%clk 0:00:24.8]} 62. Kg2 {[%clk 0:01:19.9]} 62... Ke3 {[%clk 0:00:25.4]} 63.
Be8 {[%clk 0:01:20.6]} 63... Nf6 {[%clk 0:00:26]} 64. Bb5 {[%clk 0:01:21.6]}
64... Kd2 {[%clk 0:00:25.4]} 65. Kf2 {[%clk 0:01:22.7]} 65... Ne4+ {[%clk
0:00:25.5]} 66. Kg2 {[%clk 0:01:23.9]} 66... Kc3 {[%clk 0:00:23.7]} 67. Be8
{[%clk 0:01:24.4]} 67... Nf6 {[%clk 0:00:23.6]} 68. Bc6 {[%clk 0:01:25.5]} 68...
Kd3 {[%clk 0:00:22.9]} 69. Kf2 {[%clk 0:01:26.1]} 69... Kd2 {[%clk 0:00:24]} 70.
Kg2 {[%clk 0:01:27.2]} 70... Ke3 {[%clk 0:00:24.5]} 71. Bb5 {[%clk 0:01:26.4]}
71... Kd4 {[%clk 0:00:21.2]} 72. Kf2 {[%clk 0:01:27.5]} 72... Ne4+ {[%clk
0:00:21.9]} 73. Kg2 {[%clk 0:01:28.7]} 73... Ke5 {[%clk 0:00:22.7]} 74. Be8
{[%clk 0:01:29.6]} 74... Nc3 {[%clk 0:00:22.2]} 75. Kf2 {[%clk 0:01:29.5]} 75...
Ne4+ {[%clk 0:00:17.2]} 76. Kg2 {[%clk 0:01:30.6]} 76... Nf6 {[%clk 0:00:18.2]}
77. Bb5 {[%clk 0:01:31.7]} 77... Kd6 {[%clk 0:00:16.2]} 78. Kf2 {[%clk
0:01:32.4]} 78... Ne4+ {[%clk 0:00:17.2]} 79. Kg2 {[%clk 0:01:33.5]} 79... Kc5
{[%clk 0:00:18.4]} 80. Kh2 {[%clk 0:01:29.5]} 80... Kb4 {[%clk 0:00:18.9]} 81.
Be8 {[%clk 0:01:29.5]} 81... Nf6 {[%clk 0:00:18.3]} 82. Bc6 {[%clk 0:01:30.4]}
82... Kc5 {[%clk 0:00:19.6]} 83. Bb5 {[%clk 0:01:31.2]} 83... Ne4 {[%clk
0:00:19.4]} 84. Be8 {[%clk 0:01:30.9]} 84... Nf6 {[%clk 0:00:16.9]} 85. Bb5
{[%clk 0:01:31.1]} 85... Nd5 {[%clk 0:00:13.7]} 86. Be8 {[%clk 0:01:31.5]} 86...
Nf6 {[%clk 0:00:12.2]} 87. Bb5 {[%clk 0:01:31.8]} 87... Kd4 {[%clk 0:00:14.1]}
88. Kg2 {[%clk 0:01:32.1]} 88... Kd5 {[%clk 0:00:14.5]} 89. Kf2 {[%clk
0:01:31.6]} 89... Ke5 {[%clk 0:00:15.8]} 90. Kg2 {[%clk 0:01:30.8]} 90... Ke6
{[%clk 0:00:16.7]} 91. Kf2 {[%clk 0:01:30.7]} 91... Ne4+ {[%clk 0:00:17.4]} 92.
Kg2 {[%clk 0:01:31.6]} 92... Kf7 {[%clk 0:00:18.7]} 93. Bc6 {[%clk 0:01:32.5]}
93... Nd6 {[%clk 0:00:16.6]} 94. Kf2 {[%clk 0:01:33.3]} 94... Nf5 {[%clk
0:00:17.2]} 95. Bd7 {[%clk 0:01:29.7]} 95... Kf6 {[%clk 0:00:17.8]} 96. Be8
{[%clk 0:01:30]} 96... Ng7 {[%clk 0:00:18.6]} 97. Bb5 {[%clk 0:01:30.4]} 97...
Ke5 {[%clk 0:00:19.7]} 98. Bc6 {[%clk 0:01:27.4]} 98... Kd4 {[%clk 0:00:19.6]}
99. Bb5 {[%clk 0:01:28.4]} 99... Kd5 {[%clk 0:00:17.6]} 100. Ke3 {[%clk
0:01:28.1]} 100... Ke5 {[%clk 0:00:17.9]} 101. Kf2 {[%clk 0:01:28.7]} 101... Nf5
{[%clk 0:00:15.4]} 102. Be8 {[%clk 0:01:29.4]} 102... Ng7 {[%clk 0:00:15.7]}
103. Bb5 {[%clk 0:01:30.2]} 103... Kf6 {[%clk 0:00:16.7]} 104. Ke3 {[%clk
0:01:31]} 104... Nf5+ {[%clk 0:00:16.7]} 105. Kf4 {[%clk 0:01:31.3]} 105... Nd4
{[%clk 0:00:16.6]} 106. Be8 {[%clk 0:01:31.2]} 106... Ne2+ {[%clk 0:00:14.7]}
107. Ke3 {[%clk 0:01:30.5]} 107... Nxg3 {[%clk 0:00:16.6]} 108. Kf4 {[%clk
0:01:28.7]} 108... Ne2+ {[%clk 0:00:14.8]} 109. Ke3 {[%clk 0:01:29.7]} 109...
Nc3 {[%clk 0:00:15.8]} 110. Bxh5 {[%clk 0:01:30.5]} 110... g3 {[%clk 0:00:16.4]}
111. Be8 {[%clk 0:01:29.1]} 111... Ke7 {[%clk 0:00:12.5]} 112. Bc6 {[%clk
0:01:28.8]} 112... Kd6 {[%clk 0:00:13.6]} 113. Be8 {[%clk 0:01:29.9]} 113... Ke7
{[%clk 0:00:14.7]} 114. Bc6 {[%clk 0:01:30.3]} 114... b5 {[%clk 0:00:12.9]} 115.
Bxb5 {[%clk 0:01:19.3]} 115... Nxb5 {[%clk 0:00:11.2]} 116. axb5 {[%clk
0:01:20.6]} 116... a4 {[%clk 0:00:12.4]} 117. b6 {[%clk 0:01:21.7]} 117... Kd7
{[%clk 0:00:10.9]} 118. b7 {[%clk 0:01:22.8]} 118... Kc7 {[%clk 0:00:12]} 119.
h5 {[%clk 0:01:21.7]} 119... g2 {[%clk 0:00:10.2]} 120. Kf2 {[%clk 0:01:22]}
120... a3 {[%clk 0:00:10.5]} 121. h6 {[%clk 0:01:23.2]} 121... Kxb7 {[%clk
0:00:09.7]} 122. h7 {[%clk 0:01:23.1]} 1-0

[Event "*** Titled Tuesday 3|2 Blitz"]
[Site "Chess.com"]
[Date "2016.01.05"]
[Round "7"]
[White "HansCoolNiemann"]
[Black "alturas_pacificas"]
[Result "1-0"]
[WhiteElo "2210"]
[BlackElo "2072"]
[TimeControl "180+2"]
[EndTime "12:20:44 PST"]
[Termination "HansCoolNiemann won by resignation"]

1. d4 {[%clk 0:03:01.9]} 1... d5 {[%clk 0:02:56.7]} 2. c4 {[%clk 0:03:02.9]}
2... c6 {[%clk 0:02:57.5]} 3. Nf3 {[%clk 0:03:04.2]} 3... Nf6 {[%clk 0:02:57.7]}
4. e3 {[%clk 0:03:05.5]} 4... e6 {[%clk 0:02:58.8]} 5. Nbd2 {[%clk 0:03:05.9]}
5... Nbd7 {[%clk 0:02:58.6]} 6. Bd3 {[%clk 0:03:04.8]} 6... b6 {[%clk 0:02:58]}
7. O-O {[%clk 0:03:04.3]} 7... Bb7 {[%clk 0:02:59.1]} 8. e4 {[%clk 0:03:03.2]}
8... dxe4 {[%clk 0:02:59.9]} 9. Nxe4 {[%clk 0:03:05.1]} 9... Nxe4 {[%clk
0:03:01.5]} 10. Bxe4 {[%clk 0:03:05.8]} 10... Nf6 {[%clk 0:03:03.1]} 11. Bc2
{[%clk 0:03:03.7]} 11... c5 {[%clk 0:03:04.1]} 12. Bg5 {[%clk 0:03:00]} 12...
cxd4 {[%clk 0:03:03.7]} 13. Ba4+ {[%clk 0:02:58.8]} 13... Ke7 {[%clk 0:02:59.4]}
14. Nxd4 {[%clk 0:02:59.7]} 14... h6 {[%clk 0:02:50.3]} 15. Re1 {[%clk
0:02:53.5]} 15... Qxd4 {[%clk 0:02:22.8]} 16. Qxd4 {[%clk 0:02:52.2]} 16... hxg5
{[%clk 0:02:23.1]} 17. Rad1 {[%clk 0:02:53.2]} 1-0

[Event "*** Titled Tuesday 3|2 Blitz"]
[Site "Chess.com"]
[Date "2016.01.05"]
[Round "7"]
[White "BellJackson95"]
[Black "jup1978"]
[Result "1-0"]
[WhiteElo "2272"]
[BlackElo "2215"]
[TimeControl "180+2"]
[EndTime "12:22:50 PST"]
[Termination "BellJackson95 won by resignation"]

1. e4 {[%clk 0:02:50]} 1... e6 {[%clk 0:03:00]} 2. d4 {[%clk 0:02:50.9]} 2... d5
{[%clk 0:03:01.9]} 3. Nc3 {[%clk 0:02:52.5]} 3... Nf6 {[%clk 0:03:02.2]} 4. Bg5
{[%clk 0:02:53.3]} 4... Bb4 {[%clk 0:03:02.8]} 5. e5 {[%clk 0:02:54.2]} 5... h6
{[%clk 0:03:04.4]} 6. Be3 {[%clk 0:02:55.3]} 6... Bxc3+ {[%clk 0:03:05.5]} 7.
bxc3 {[%clk 0:02:56]} 7... Ne4 {[%clk 0:03:07.4]} 8. Qg4 {[%clk 0:02:56.4]} 8...
Kf8 {[%clk 0:03:07.7]} 9. Bd3 {[%clk 0:02:55.8]} 9... Nxc3 {[%clk 0:03:00.5]}
10. Nf3 {[%clk 0:02:52.3]} 10... c5 {[%clk 0:02:59.4]} 11. dxc5 {[%clk
0:02:48.1]} 11... Nc6 {[%clk 0:02:59.8]} 12. Bd2 {[%clk 0:02:45.6]} 12... Ne4
{[%clk 0:02:57.9]} 13. Bxe4 {[%clk 0:02:45]} 13... dxe4 {[%clk 0:02:59.8]} 14.
Qxe4 {[%clk 0:02:46.7]} 14... Qd5 {[%clk 0:03:00.5]} 15. Qe3 {[%clk 0:02:40.7]}
15... Bd7 {[%clk 0:02:53.4]} 16. O-O {[%clk 0:02:38.3]} 16... Rd8 {[%clk
0:02:49.4]} 17. Bc3 {[%clk 0:02:34.8]} 17... Qc4 {[%clk 0:02:35.6]} 18. Rfd1
{[%clk 0:02:30.4]} 18... Ke7 {[%clk 0:02:35.2]} 19. Rd6 {[%clk 0:02:17.8]} 19...
Bc8 {[%clk 0:02:35.1]} 20. Qd2 {[%clk 0:02:09]} 20... Qxc5 {[%clk 0:02:23.4]}
21. Rd1 {[%clk 0:02:03.6]} 21... Qb6 {[%clk 0:02:11.1]} 22. Qf4 {[%clk
0:01:53.2]} 22... Rd7 {[%clk 0:02:04.8]} 23. g4 {[%clk 0:01:31.3]} 23... g5
{[%clk 0:01:56.7]} 24. Qf6+ {[%clk 0:01:29.5]} 1-0

[Event "*** Titled Tuesday 3|2 Blitz"]
[Site "Chess.com"]
[Date "2016.01.05"]
[Round "7"]
[White "Haridaskesavan"]
[Black "saraswathii"]
[Result "1-0"]
[WhiteElo "2095"]
[BlackElo "1857"]
[TimeControl "180+2"]
[EndTime "12:24:23 PST"]
[Termination "Haridaskesavan won on time"]

1. e4 {[%clk 0:03:01.9]} 1... c5 {[%clk 0:02:50.4]} 2. c3 {[%clk 0:03:02.3]}
2... Nf6 {[%clk 0:02:48.5]} 3. e5 {[%clk 0:03:02.7]} 3... Nd5 {[%clk 0:02:28.2]}
4. g3 {[%clk 0:03:03.7]} 4... Nc6 {[%clk 0:02:25.4]} 5. f4 {[%clk 0:03:00.7]}
5... d6 {[%clk 0:01:53.5]} 6. exd6 {[%clk 0:03:00.6]} 6... exd6 {[%clk
0:01:39.9]} 7. Bg2 {[%clk 0:03:01.2]} 7... Nf6 {[%clk 0:01:39.4]} 8. Ne2 {[%clk
0:03:01.4]} 8... d5 {[%clk 0:01:38]} 9. d4 {[%clk 0:03:02.3]} 9... c4 {[%clk
0:01:10.2]} 10. O-O {[%clk 0:03:01.5]} 10... Be7 {[%clk 0:01:05.7]} 11. Nd2
{[%clk 0:03:02.5]} 11... Bf5 {[%clk 0:01:01.1]} 12. Nf3 {[%clk 0:03:01.7]} 12...
O-O {[%clk 0:00:54.4]} 13. b3 {[%clk 0:03:01]} 13... cxb3 {[%clk 0:00:37.9]} 14.
axb3 {[%clk 0:03:01.3]} 14... a6 {[%clk 0:00:33.6]} 15. Re1 {[%clk 0:03:01.6]}
15... Re8 {[%clk 0:00:28.1]} 16. Bb2 {[%clk 0:03:01.1]} 16... Ne4 {[%clk
0:00:17.3]} 17. Ne5 {[%clk 0:02:58.5]} 17... Nxe5 {[%clk 0:00:15.7]} 18. fxe5
{[%clk 0:02:58.3]} 18... Rc8 {[%clk 0:00:13.2]} 19. Rc1 {[%clk 0:02:55.7]} 19...
Bg5 {[%clk 0:00:12.6]} 20. Nf4 {[%clk 0:02:54.5]} 20... Bxf4 {[%clk 0:00:11.5]}
21. gxf4 {[%clk 0:02:55]} 21... Qh4 {[%clk 0:00:11.1]} 22. Rf1 {[%clk
0:02:44.7]} 22... Bg4 {[%clk 0:00:09.7]} 23. Qd3 {[%clk 0:02:42]} 23... Bf5
{[%clk 0:00:09.6]} 24. Qe3 {[%clk 0:02:41.6]} 24... Rc6 {[%clk 0:00:05.1]} 25.
c4 {[%clk 0:02:42.1]} 25... Rg6 {[%clk 0:00:05.3]} 26. cxd5 {[%clk 0:02:34.7]}
26... Bh3 {[%clk 0:00:03.9]} 27. Rc2 {[%clk 0:02:33.4]} 27... Bf5 {[%clk
0:00:03.2]} 28. Re2 {[%clk 0:02:23.8]} 1-0

[Event "*** Titled Tuesday 3|2 Blitz"]
[Site "Chess.com"]
[Date "2016.01.05"]
[Round "7"]
[White "nijat_a"]
[Black "FairChess_on_YouTube"]
[Result "0-1"]
[WhiteElo "2687"]
[BlackElo "2791"]
[TimeControl "180+2"]
[EndTime "12:24:44 PST"]
[Termination "FairChess_on_YouTube won by resignation"]

1. e4 {[%clk 0:03:01.9]} 1... c5 {[%clk 0:02:59.9]} 2. Nf3 {[%clk 0:03:02.1]}
2... e6 {[%clk 0:03:01.1]} 3. d4 {[%clk 0:03:02.8]} 3... cxd4 {[%clk 0:03:02.4]}
4. Nxd4 {[%clk 0:03:04.7]} 4... Nc6 {[%clk 0:03:04]} 5. Nc3 {[%clk 0:03:06.1]}
5... a6 {[%clk 0:03:05.3]} 6. Be3 {[%clk 0:03:03.1]} 6... Nf6 {[%clk 0:03:05.8]}
7. Nxc6 {[%clk 0:02:50.9]} 7... bxc6 {[%clk 0:03:06.1]} 8. e5 {[%clk 0:02:47.1]}
8... Nd5 {[%clk 0:03:05.9]} 9. Nxd5 {[%clk 0:02:47.8]} 9... cxd5 {[%clk
0:03:06.4]} 10. Bd3 {[%clk 0:02:49.1]} 10... d6 {[%clk 0:02:48]} 11. Bd4 {[%clk
0:02:41.5]} 11... dxe5 {[%clk 0:02:31.6]} 12. Bxe5 {[%clk 0:02:43.4]} 12... Qg5
{[%clk 0:02:31.8]} 13. Qe2 {[%clk 0:02:43.3]} 13... Bc5 {[%clk 0:02:13.3]} 14.
f4 {[%clk 0:02:25.2]} 14... Qh6 {[%clk 0:02:11.5]} 15. g3 {[%clk 0:01:54]} 15...
O-O {[%clk 0:02:06]} 16. Bc3 {[%clk 0:01:46.2]} 16... e5 {[%clk 0:01:49]} 17.
Qxe5 {[%clk 0:01:35.7]} 17... Bg4 {[%clk 0:01:44.2]} 18. Qxd5 {[%clk 0:00:50.2]}
18... Rfe8+ {[%clk 0:01:41.6]} 19. Be5 {[%clk 0:00:48.3]} 19... Qb6 {[%clk
0:01:39.2]} 20. Kd2 {[%clk 0:00:40.1]} 20... Be3+ {[%clk 0:01:32.2]} 21. Ke1
{[%clk 0:00:41.4]} 21... Bf2+ {[%clk 0:01:27.5]} 22. Kd2 {[%clk 0:00:32.5]}
22... Be3+ {[%clk 0:01:28.5]} 23. Ke1 {[%clk 0:00:33.2]} 23... Bxf4 {[%clk
0:01:27.5]} 24. gxf4 {[%clk 0:00:22.3]} 24... Qe3+ {[%clk 0:01:27.3]} 25. Kf1
{[%clk 0:00:23.8]} 25... Bh3+ {[%clk 0:01:28.5]} 26. Qg2 {[%clk 0:00:25]} 26...
Qf3+ {[%clk 0:01:29.4]} 0-1

[Event "*** Titled Tuesday 3|2 Blitz"]
[Site "Chess.com"]
[Date "2016.01.05"]
[Round "7"]
[White "Frolyanov_D"]
[Black "chessdude"]
[Result "1-0"]
[WhiteElo "2484"]
[BlackElo "2314"]
[TimeControl "180+2"]
[EndTime "12:24:52 PST"]
[Termination "Frolyanov_D won by resignation"]

1. e4 {[%clk 0:03:01.9]} 1... c5 {[%clk 0:02:59.4]} 2. Nf3 {[%clk 0:02:57.2]}
2... d6 {[%clk 0:03:00.5]} 3. d4 {[%clk 0:02:57.2]} 3... cxd4 {[%clk 0:03:01.5]}
4. Nxd4 {[%clk 0:02:59.1]} 4... Nf6 {[%clk 0:03:03.1]} 5. Nc3 {[%clk 0:03:00.6]}
5... a6 {[%clk 0:03:04.5]} 6. Be3 {[%clk 0:03:01.3]} 6... e5 {[%clk 0:03:05.5]}
7. Nf3 {[%clk 0:03:02]} 7... Qc7 {[%clk 0:03:06.2]} 8. a4 {[%clk 0:03:00.1]}
8... Be7 {[%clk 0:03:07.4]} 9. a5 {[%clk 0:02:59.2]} 9... Be6 {[%clk 0:03:06.4]}
10. Nd5 {[%clk 0:02:56]} 10... Bxd5 {[%clk 0:02:51.1]} 11. exd5 {[%clk
0:02:57.9]} 11... Nbd7 {[%clk 0:02:51.5]} 12. c4 {[%clk 0:02:57.4]} 12... O-O
{[%clk 0:02:50.5]} 13. Be2 {[%clk 0:02:56.9]} 13... Ng4 {[%clk 0:02:50.9]} 14.
Bd2 {[%clk 0:02:56.5]} 14... Nc5 {[%clk 0:02:40.5]} 15. O-O {[%clk 0:02:55]}
15... Ne4 {[%clk 0:02:38.5]} 16. Be1 {[%clk 0:02:49.4]} 16... f5 {[%clk
0:02:38.6]} 17. b4 {[%clk 0:02:48.9]} 17... h6 {[%clk 0:02:28.7]} 18. Rc1 {[%clk
0:02:48.5]} 18... Ng5 {[%clk 0:02:26]} 19. Rc2 {[%clk 0:02:37.5]} 19... Nxf3+
{[%clk 0:02:24]} 20. Bxf3 {[%clk 0:02:38.9]} 20... Nf6 {[%clk 0:02:25.6]} 21. c5
{[%clk 0:02:36.2]} 21... e4 {[%clk 0:02:22.2]} 22. Be2 {[%clk 0:02:36.9]} 22...
Rfc8 {[%clk 0:01:59.1]} 23. Bc4 {[%clk 0:02:29.6]} 23... Kh8 {[%clk 0:01:58]}
24. Bc3 {[%clk 0:02:03.3]} 24... dxc5 {[%clk 0:01:55.5]} 25. Bxf6 {[%clk
0:02:04.1]} 25... Bxf6 {[%clk 0:01:54.2]} 26. d6 {[%clk 0:02:05.5]} 26... Qd8
{[%clk 0:01:52.7]} 27. Be6 {[%clk 0:02:04.7]} 27... Rc6 {[%clk 0:01:51.6]} 28.
bxc5 {[%clk 0:02:03.9]} 28... Qxa5 {[%clk 0:01:51.8]} 29. Bxf5 {[%clk
0:01:51.7]} 29... Rxc5 {[%clk 0:01:50.6]} 30. Bxe4 {[%clk 0:01:52.5]} 30... Rxc2
{[%clk 0:01:48.1]} 31. Bxc2 {[%clk 0:01:54.4]} 31... Qc3 {[%clk 0:01:36.4]} 32.
Qe2 {[%clk 0:01:52.1]} 32... Rc8 {[%clk 0:01:27.3]} 33. Bb1 {[%clk 0:01:33.5]}
33... Qc4 {[%clk 0:01:13.4]} 34. d7 {[%clk 0:01:31]} 34... Rc7 {[%clk
0:01:09.7]} 35. Qe8+ {[%clk 0:01:29.2]} 35... Qg8 {[%clk 0:01:10.4]} 36. Ba2
{[%clk 0:01:20.4]} 1-0

[Event "*** Titled Tuesday 3|2 Blitz"]
[Site "Chess.com"]
[Date "2016.01.05"]
[Round "7"]
[White "chorejason"]
[Black "pedromartinez91"]
[Result "0-1"]
[WhiteElo "1889"]
[BlackElo "2065"]
[TimeControl "180+2"]
[EndTime "12:25:10 PST"]
[Termination "pedromartinez91 won by resignation"]

1. e4 {[%clk 0:03:01.9]} 1... e6 {[%clk 0:02:58.9]} 2. d4 {[%clk 0:03:02.4]}
2... d5 {[%clk 0:02:58.2]} 3. Nd2 {[%clk 0:03:03.7]} 3... Nf6 {[%clk 0:02:58.5]}
4. e5 {[%clk 0:03:05]} 4... Ne4 {[%clk 0:02:59.5]} 5. Bd3 {[%clk 0:03:04.5]}
5... Nxd2 {[%clk 0:02:59.4]} 6. Bxd2 {[%clk 0:03:05.9]} 6... c5 {[%clk
0:03:00.7]} 7. c3 {[%clk 0:03:06.3]} 7... Qb6 {[%clk 0:03:01.6]} 8. Rb1 {[%clk
0:02:31.5]} 8... cxd4 {[%clk 0:02:59.5]} 9. Ne2 {[%clk 0:02:31.3]} 9... dxc3
{[%clk 0:02:55.7]} 10. bxc3 {[%clk 0:02:27.9]} 10... Qc7 {[%clk 0:02:55.4]} 11.
O-O {[%clk 0:02:25.5]} 11... Nc6 {[%clk 0:02:55.2]} 12. f4 {[%clk 0:02:24.7]}
12... g6 {[%clk 0:02:44.4]} 13. Kh1 {[%clk 0:02:24.9]} 13... Bg7 {[%clk
0:02:41.1]} 14. Nd4 {[%clk 0:02:25]} 14... a6 {[%clk 0:02:39.2]} 15. Be3 {[%clk
0:02:21.9]} 15... O-O {[%clk 0:02:37.3]} 16. g4 {[%clk 0:02:14.7]} 16... Bd7
{[%clk 0:02:29.3]} 17. f5 {[%clk 0:02:14.4]} 17... Bxe5 {[%clk 0:02:13.3]} 18.
f6 {[%clk 0:01:22.8]} 18... Rfc8 {[%clk 0:02:07.3]} 19. Nf3 {[%clk 0:01:14.8]}
19... Bf4 {[%clk 0:02:04.8]} 20. Bb6 {[%clk 0:01:13.9]} 20... Qd6 {[%clk
0:02:01.8]} 21. g5 {[%clk 0:01:09.5]} 21... e5 {[%clk 0:01:59.9]} 22. Qe1 {[%clk
0:00:57.9]} 22... e4 {[%clk 0:01:58.8]} 23. Qh4 {[%clk 0:00:58.6]} 23... exd3
{[%clk 0:01:54.1]} 24. Nd2 {[%clk 0:00:39.5]} 24... Bxd2 {[%clk 0:01:50.4]} 25.
Rbd1 {[%clk 0:00:27.5]} 25... Bxc3 {[%clk 0:01:27]} 26. Rxd3 {[%clk 0:00:28]}
26... Ne5 {[%clk 0:01:27.4]} 27. Rxc3 {[%clk 0:00:17.1]} 27... Rxc3 {[%clk
0:01:25.9]} 28. Bd4 {[%clk 0:00:18.2]} 28... Rc4 {[%clk 0:01:19]} 0-1